bitfinex/quotes_SOLUSD_20250924
["timestamp","ask_amount","ask_price","bid_price","bid_amount"]
[1758693085433,0.68,210.9,210.78,11.86053833]
[1758693085750,0.68,210.89,210.85,13.59559401]
[1758693085931,0.68,210.89,210.86,33.14]
[1758693085932,0.68,210.88,210.86,33.14]
[1758693086133,4.7418513,210.89,210.84,5.53220255]
[1758693086134,0.68,210.87,210.84,5.53220255]
[1758693086453,0.68,210.87,210.85,52.19559401]
[1758693086645,0.68,210.9,210.85,52.19559401]
[1758693086854,0.68,210.89,210.85,13.59559401]
[1758693087148,0.68,210.88,210.86,38.6]
[1758693087731,0.68,210.87,210.85,13.59559401]
[1758693087931,0.68,210.87,210.86,38.58]
[1758693089131,0.68,210.92,210.86,5.53220255]
[1758693089346,0.68,210.91,210.87,38.56]
[1758693089660,0.68,210.9,210.88,38.56]
[1758693089952,0.68,210.89,210.88,38.56]
[1758693090359,0.68,210.89,210.88,38.54]
[1758693092837,5.42180852,210.89,210.88,38.54]
[1758693093265,5.42180852,210.89,210.82,4.74335798]
[1758693093436,5.42180852,210.89,210.84,13.59559401]
[1758693093636,0.68,210.88,210.84,13.59559401]
[1758693093959,4.74180852,210.89,210.84,13.59559401]
[1758693093960,0.68,210.87,210.85,38.48]
[1758693094153,4.74180852,210.89,210.85,38.48]
[1758693094347,0.68,210.93,210.86,13.59559401]
[1758693094547,5.4209093,210.93,210.86,19.12779656]
[1758693095244,0.68,210.93,210.88,13.59559401]
[1758693095440,0.68,210.93,210.89,38.46]
[1758693095763,0.68,210.92,210.89,38.46]
[1758693096279,2.48108891,210.97,210.89,38.46]
[1758693096597,0.68,210.96,210.89,38.46]
[1758693096744,0.68,210.95,210.89,38.46]
[1758693097269,5.42053371,210.95,210.89,38.46]
[1758693097455,5.42053371,210.95,210.9,13.59559401]
[1758693097630,0.68,210.95,210.9,13.59559401]
[1758693098647,4.74001042,210.97,210.9,13.59559401]
[1758693098846,0.68,210.94,210.9,13.59559401]
[1758693099567,0.68,210.93,210.87,26.0]
[1758693099737,0.68,210.92,210.86,13.59559401]
[1758693099940,0.68,210.91,210.87,26.72]
[1758693100139,0.68,210.9,210.88,38.42]
[1758693100336,0.68,210.89,210.88,38.42]
[1758693101053,5.42180852,210.89,210.88,38.42]
[1758693101940,26.0,210.97,210.83,18.33867774]
[1758693102137,0.68,210.91,210.84,38.38]
[1758693102355,4.74023511,210.96,210.75,27.32952849]
[1758693102356,16.59115472,210.96,210.77,11.86092001]
[1758693102644,0.68,210.9,210.71,4.74585923]
[1758693102863,16.59711683,210.88,210.73,4.74540881]
[1758693103049,0.68,210.87,210.78,3.60473609]
[1758693103357,0.68,210.87,210.79,42.02473609]
[1758693103562,0.68,210.87,210.8,17.2003301]
[1758693103769,4.74182905,210.89,210.8,17.2003301]
[1758693103967,0.68,210.9,210.81,3.60473609]
[1758693104152,0.68,210.92,210.83,3.60473609]
[1758693104350,0.68,210.92,210.85,13.59559401]
[1758693104761,0.68,210.92,210.86,38.42]
[1758693104949,0.68,210.92,210.87,4.74225826]
[1758693105149,0.68,210.91,210.87,4.74225826]
[1758693105350,4.74093692,210.93,210.87,4.74225826]
[1758693105649,0.68,210.94,210.88,13.59559401]
[1758693105856,0.68,210.96,210.88,13.59559401]
[1758693106055,0.68,210.95,210.88,13.59559401]
[1758693106771,5.42053796,210.95,210.88,4.74185518]
[1758693108871,4.74053796,210.95,210.87,13.59559401]
[1758693109069,0.68,210.94,210.87,18.33781044]
[1758693110377,0.68,210.96,210.87,18.33781044]
[1758693110856,0.72,210.95,210.87,18.33781044]
[1758693111053,0.72,210.94,210.88,38.36]
[1758693111255,0.72,210.93,210.88,38.36]
[1758693111456,0.72,210.92,210.88,38.36]
[1758693111661,0.72,210.91,210.88,38.36]
[1758693111859,0.72,210.9,210.88,38.36]
[1758693112160,5.46180852,210.89,210.81,1.49912622]
[1758693112478,5.46180852,210.89,210.76,11.86161391]
[1758693112479,5.46180852,210.89,210.82,13.59559401]
[1758693112677,4.74180852,210.89,210.83,38.34]
[1758693112873,0.72,210.88,210.83,38.34]
[1758693113062,4.74180852,210.89,210.83,38.34]
[1758693113063,0.72,210.87,210.83,38.34]
[1758693113266,0.72,210.86,210.79,18.33963065]
[1758693113467,0.72,210.86,210.8,38.34]
[1758693114171,4.74270808,210.85,210.76,27.49912622]
[1758693114373,0.72,210.84,210.76,13.59559401]
[1758693114562,0.72,210.83,210.76,38.34]
[1758693114761,16.59947829,210.85,210.76,38.34]
[1758693114762,0.72,210.82,210.76,38.34]
[1758693114957,0.72,210.81,210.76,38.34]
[1758693115269,0.72,210.8,210.76,38.34]
[1758693115462,0.72,210.79,210.7,38.48]
[1758693115667,0.72,210.78,210.71,38.34]
[1758693115886,0.72,210.77,210.71,38.34]
[1758693116061,4.74495848,210.75,210.71,38.34]
[1758693116262,0.72,210.74,210.67,30.74672686]
[1758693116466,0.72,210.74,210.68,38.34]
[1758693117184,4.74532367,210.74,210.68,43.0865299]
[1758693117483,5.46405806,210.79,210.69,51.91559401]
[1758693117778,0.72,210.78,210.69,51.91559401]
[1758693119185,5.46450527,210.78,210.71,13.59559401]
[1758693120066,5.46450527,210.78,210.7,13.59559401]
[1758693120261,0.72,210.77,210.69,38.32]
[1758693120581,0.72,210.77,210.68,38.3]
[1758693120782,16.60521311,210.78,210.68,38.3]
[1758693120783,0.72,210.76,210.68,38.3]
[1758693120965,0.72,210.75,210.68,38.3]
[1758693121167,4.74518363,210.74,210.65,4.74712561]
[1758693121375,4.74518363,210.74,210.69,38.3]
[1758693121767,0.72,210.73,210.69,38.3]
[1758693122267,0.72,210.72,210.69,38.3]
[1758693122467,0.72,210.71,210.63,13.59559401]
[1758693122783,0.72,210.71,210.64,38.28]
[1758693123087,0.72,210.7,210.6,38.28]
[1758693123276,17.3320841,210.69,210.6,38.28]
[1758693123476,0.72,210.68,210.6,43.02823078]
[1758693123665,5.46600984,210.71,210.61,13.59559401]
[1758693124081,0.72,210.7,210.61,13.59559401]
[1758693124880,4.74600984,210.71,210.61,13.59559401]
[1758693124881,0.72,210.69,210.61,13.59559401]
[1758693125067,0.72,210.69,210.62,38.3]
[1758693125272,5.46648159,210.69,210.62,43.04788619]
[1758693125779,17.33225595,210.69,210.62,38.3]
[1758693125966,0.72,210.68,210.62,38.3]
[1758693127267,16.61444982,210.66,210.63,38.28]
[1758693127467,0.72,210.65,210.63,38.28]
[1758693127883,0.72,210.64,210.63,38.28]
[1758693128792,0.72,210.64,210.59,0.2]
[1758693129482,16.61681621,210.63,210.59,0.2]
[1758693129673,0.72,210.62,210.59,0.2]
[1758693129870,0.72,210.61,210.59,0.2]
[1758693130385,5.46766177,210.63,210.59,0.2]
[1758693130698,0.72,210.62,210.59,0.2]
[1758693130986,0.72,210.61,210.59,0.2]
[1758693131183,5.46766177,210.63,210.59,0.2]
[1758693131386,0.72,210.62,210.59,0.2]
[1758693131586,0.72,210.61,210.59,0.2]
[1758693131963,4.74721101,210.65,210.59,0.2]
[1758693132374,4.74721101,210.65,210.59,4.94852552]
[1758693133091,0.72,210.66,210.59,4.94852552]
[1758693133683,0.72,210.65,210.6,38.26]
[1758693133893,0.72,210.64,210.6,38.26]
[1758693134393,16.61446897,210.66,210.59,0.2]
[1758693134688,0.72,210.63,210.59,0.2]
[1758693134896,0.72,210.62,210.59,0.2]
[1758693135897,5.46800277,210.62,210.59,0.2]
[1758693137778,5.46721101,210.65,210.59,0.2]
[1758693140073,17.33523854,210.65,210.59,0.2]
[1758693140981,5.46721101,210.65,210.59,0.2]
[1758693142271,17.33523854,210.65,210.59,0.2]
[1758693144322,19.81834977,210.65,210.59,0.2]
[1758693147718,43.55440483,210.65,210.59,0.2]
[1758693147913,26.0,210.62,210.59,0.2]
[1758693148312,0.7,210.61,210.59,0.2]
[1758693148517,26.0,210.6,210.47,0.2]
[1758693148716,26.0,210.62,210.47,0.2]
[1758693148717,26.7,210.59,210.47,0.2]
[1758693149020,26.7,210.59,210.47,18.54685724]
[1758693149225,17.32076169,210.58,210.47,4.95126323]
[1758693149402,0.7,210.57,210.47,4.95126323]
[1758693149602,0.7,210.56,210.47,4.95126323]
[1758693149817,0.7,210.55,210.47,4.95126323]
[1758693150225,4.74969127,210.54,210.47,4.95126323]
[1758693150416,5.44969127,210.54,210.47,43.05126323]
[1758693151899,5.44969127,210.54,210.47,4.95126323]
[1758693152222,0.7,210.53,210.47,43.03126323]
[1758693153026,4.74946905,210.55,210.47,43.03126323]
[1758693153805,5.44946905,210.55,210.47,43.03126323]
[1758693154018,0.7,210.58,210.48,13.59559401]
[1758693154324,0.7,210.6,210.48,13.59559401]
[1758693154625,0.7,210.6,210.48,1.50388274]
[1758693155521,0.7,210.6,210.5,1.50388274]
[1758693155720,4.74856355,210.59,210.5,13.59559401]
[1758693155900,4.74856355,210.59,210.51,1.50388274]
[1758693156297,0.7,210.63,210.55,1.50388274]
[1758693156528,0.7,210.63,210.56,38.06]
[1758693157619,5.44776405,210.63,210.57,4.74901457]
[1758693159617,0.7,210.63,210.57,4.74901457]
[1758693159814,0.7,210.65,210.57,4.74901457]
[1758693161205,0.7,210.64,210.57,4.74901457]
[1758693161412,0.7,210.64,210.56,38.06]
[1758693162632,0.7,210.64,210.56,42.80916971]
[1758693163012,5.44765883,210.64,210.56,42.80916971]
[1758693165318,0.7,210.63,210.57,37.96]
[1758693165632,0.7,210.62,210.47,0.2]
[1758693165933,0.7,210.62,210.48,32.36]
[1758693166130,0.7,210.61,210.48,32.36]
[1758693166305,0.7,210.6,210.48,32.36]
[1758693166505,0.7,210.59,210.48,32.36]
[1758693166713,0.7,210.58,210.48,37.11104522]
[1758693167007,0.7,210.57,210.48,37.11104522]
[1758693167428,5.44915719,210.57,210.48,37.11104522]
[1758693168146,11.87102176,210.6,210.48,37.11104522]
[1758693168147,4.74880524,210.58,210.49,15.94495906]
[1758693169021,4.74880524,210.58,210.49,13.59559401]
[1758693169241,1.18954385,210.57,210.49,13.59559401]
[1758693169447,1.18954385,210.57,210.49,18.34630681]
[1758693170328,0.7,210.56,210.47,4.95111007]
[1758693170537,0.7,210.56,210.5,37.9]
[1758693171021,4.74969127,210.54,210.47,0.2]
[1758693171209,0.65,210.53,210.47,0.2]
[1758693171411,1.83984059,210.53,210.47,0.2]
[1758693172216,26.0,210.51,210.47,0.2]
[1758693172420,0.65,210.5,210.47,0.2]
[1758693172812,26.0,210.51,210.47,0.2]
[1758693173011,0.65,210.49,210.47,0.2]
[1758693173212,26.0,210.51,210.47,0.2]
[1758693173213,0.65,210.48,210.47,0.2]
[1758693174541,26.65,210.48,210.47,0.2]
[1758693174913,27.84012653,210.48,210.47,0.2]
[1758693175316,32.59117175,210.48,210.47,0.2]
[1758693175530,31.40104522,210.48,210.47,0.2]
[1758693175924,31.40104522,210.48,210.4,38.5]
[1758693175925,44.46882057,210.48,210.39,37.88]
[1758693176235,1.84016228,210.47,210.35,39.59559401]
[1758693176434,0.65,210.46,210.34,0.21]
[1758693176647,0.65,210.46,210.34,27.56]
[1758693176839,0.65,210.45,210.34,27.56]
[1758693177037,0.65,210.44,210.34,27.56]
[1758693177239,16.63339986,210.42,210.34,27.56]
[1758693177848,0.65,210.41,210.34,27.56]
[1758693178217,0.65,210.41,210.34,37.9]
[1758693178417,0.65,210.41,210.35,37.9]
[1758693178841,4.75285171,210.4,210.35,37.9]
[1758693179250,5.40285171,210.4,210.35,37.9]
[1758693179449,26.0,210.42,210.35,38.11]
[1758693179827,0.65,210.41,210.34,37.88]
[1758693180228,0.65,210.41,210.35,37.88]
[1758693180945,4.75285171,210.4,210.35,37.88]
[1758693181146,5.40285171,210.4,210.35,37.88]
[1758693181350,5.40285171,210.4,210.34,37.86]
[1758693181925,26.0,210.37,210.25,0.2]
[1758693182125,0.65,210.36,210.26,0.21]
[1758693182347,26.0,210.37,210.28,2.34936505]
[1758693182528,26.0,210.38,210.29,40.49936505]
[1758693182745,4.75330354,210.38,210.3,7.31425114]
[1758693182923,4.75330354,210.38,210.3,4.96488609]
[1758693183453,0.65,210.37,210.3,0.21]
[1758693183749,0.65,210.37,210.29,37.94]
[1758693184053,0.65,210.36,210.28,37.94]
[1758693184248,16.6365624,210.38,210.28,37.94]
[1758693184554,17.2865624,210.38,210.29,0.21]
[1758693185240,17.2865624,210.38,210.28,37.94]
[1758693185435,0.65,210.37,210.28,37.94]
[1758693185645,0.65,210.36,210.29,37.96]
[1758693185961,30.75330354,210.38,210.3,13.80559401]
[1758693187136,31.40330354,210.38,210.3,18.56056385]
[1758693187735,31.40330354,210.38,210.31,0.21]
[1758693188350,4.75308707,210.39,210.32,2.34936505]
[1758693188650,4.75308707,210.39,210.32,2.55936505]
[1758693188829,5.40308707,210.39,210.32,0.21]
[1758693189029,5.40308707,210.39,210.31,4.75481347]
[1758693189731,5.40308707,210.39,210.3,13.80559401]
[1758693189732,16.63578111,210.39,210.3,13.80559401]
[1758693189955,0.65,210.38,210.31,37.92]
[1758693190137,16.63578111,210.39,210.31,37.92]
[1758693190138,0.65,210.37,210.31,37.92]
[1758693190332,0.65,210.36,210.31,37.92]
[1758693190853,4.75308707,210.39,210.32,0.21]
[1758693191755,0.65,210.38,210.32,0.21]
[1758693193448,5.40332594,210.38,210.32,4.75453531]
[1758693194150,0.66,210.37,210.28,2.55936505]
[1758693194355,0.66,210.36,210.3,13.59559401]
[1758693194656,0.66,210.36,210.27,25.48506944]
[1758693194657,0.66,210.36,210.31,37.9]
[1758693194834,0.66,210.35,210.31,37.9]
[1758693195034,16.6365848,210.38,210.31,37.9]
[1758693195035,0.66,210.34,210.31,37.9]
[1758693195244,0.66,210.33,210.27,13.59559401]
[1758693195448,0.66,210.33,210.28,37.9]
[1758693195648,0.66,210.37,210.28,38.11]
[1758693196252,0.66,210.36,210.28,42.86544243]
[1758693196461,0.66,210.35,210.28,4.96544243]
[1758693196633,0.66,210.35,210.29,37.9]
[1758693197046,0.66,210.38,210.3,0.21]
[1758693197537,4.75352949,210.37,210.3,4.96510108]
[1758693197748,5.41352949,210.37,210.3,4.96510108]
[1758693200046,4.75331113,210.38,210.31,13.80559401]
[1758693200364,5.41331113,210.38,210.31,13.80559401]
[1758693201448,5.41331113,210.38,210.32,4.75465956]
[1758693202140,0.66,210.38,210.32,4.75465956]
[1758693202342,4.75309766,210.39,210.33,13.59559401]
[1758693202540,4.75309766,210.39,210.34,37.82]
[1758693202741,0.71,210.39,210.34,37.82]
[1758693203855,0.71,210.38,210.34,37.82]
[1758693204969,0.71,210.37,210.34,37.82]
[1758693205149,0.71,210.36,210.3,26.0]
[1758693205349,16.63441061,210.41,210.31,37.78]
[1758693205350,0.71,210.35,210.31,37.78]
[1758693205558,0.71,210.34,210.31,37.78]
[1758693206060,5.46430609,210.34,210.31,37.78]
[1758693207268,0.71,210.38,210.31,37.78]
[1758693207475,0.71,210.48,210.36,15.94495906]
[1758693207651,0.71,210.48,210.4,13.59559401]
[1758693207847,0.71,210.48,210.41,37.96]
[1758693208077,5.46108326,210.48,210.41,37.96]
[1758693208246,3.19666658,210.48,210.42,37.96]
[1758693208446,2.48666658,210.48,210.43,0.21]
[1758693208645,2.48666658,210.48,210.42,37.96]
[1758693208871,90.60783543,210.47,210.42,37.96]
[1758693209270,89.89783543,210.47,210.42,40.51936505]
[1758693210376,89.89783543,210.47,210.43,0.21]
[1758693210578,89.89783543,210.47,210.42,42.71225575]
[1758693210869,89.89783543,210.47,210.42,42.92225575]
[1758693211467,89.89783543,210.47,210.43,16.15495906]
[1758693211844,89.89783543,210.47,210.44,0.21]
[1758693212048,89.89783543,210.47,210.44,2.55936505]
[1758693212366,89.89783543,210.47,210.45,13.59559401]
[1758693212546,89.89783543,210.47,210.46,51.49559401]
[1758693216266,89.89783543,210.47,210.46,56.24709073]
[1758693217156,89.89783543,210.47,210.46,56.18709073]
[1758693217361,89.89783543,210.47,210.46,51.43559401]
[1758693218082,89.89783543,210.47,210.46,18.34709073]
[1758693218277,89.89783543,210.47,210.46,56.16709073]
[1758693219164,90.60783543,210.47,210.42,26.0]
[1758693219351,0.71,210.46,210.43,51.41559401]
[1758693220248,0.71,210.46,210.43,13.59559401]
[1758693220454,0.71,210.46,210.44,37.8]
[1758693223254,0.71,210.46,210.43,13.59559401]
[1758693223573,0.71,210.45,210.44,37.76]
[1758693225760,5.46191294,210.45,210.44,37.76]
[1758693226482,5.46191294,210.45,210.41,26.0]
[1758693226668,0.71,210.44,210.42,37.76]
[1758693226864,0.71,210.43,210.42,37.76]
[1758693228090,90.60783543,210.47,210.42,39.26537373]
[1758693228656,90.60783543,210.47,210.43,1.50537373]
[1758693229282,90.60783543,210.47,210.42,39.26537373]
[1758693229577,90.60783543,210.47,210.43,37.76]
[1758693229578,0.71,210.46,210.43,37.76]
[1758693230059,0.71,210.46,210.43,42.51205879]
[1758693230755,89.89783543,210.47,210.44,13.59559401]
[1758693230956,89.89783543,210.47,210.45,37.76]
[1758693231164,0.72,210.46,210.44,13.59559401]
[1758693231382,89.89783543,210.47,210.45,37.76]
[1758693231580,90.61783543,210.47,210.45,37.76]
[1758693232080,89.89783543,210.47,210.45,37.76]
[1758693232377,0.72,210.46,210.45,37.76]
[1758693232589,0.72,210.46,210.44,13.59559401]
[1758693232791,0.72,210.46,210.45,37.76]
[1758693233661,89.89783543,210.47,210.45,37.76]
[1758693234068,90.61783543,210.47,210.45,37.76]
[1758693234269,0.72,210.46,210.41,26.0]
[1758693234578,89.89783543,210.47,210.41,26.0]
[1758693234579,0.72,210.45,210.42,51.35559401]
[1758693236691,89.89783543,210.47,210.42,57.61329979]
[1758693236864,89.89783543,210.47,210.42,57.82329979]
[1758693237184,90.61783543,210.47,210.44,13.59559401]
[1758693237391,90.61783543,210.47,210.45,37.76]
[1758693238379,0.72,210.46,210.44,18.34744581]
[1758693238684,89.89783543,210.47,210.41,13.59559401]
[1758693238685,0.72,210.45,210.41,13.59559401]
[1758693238866,0.72,210.45,210.43,13.59559401]
[1758693241079,94.64923093,210.47,210.43,13.59559401]
[1758693241288,0.72,210.46,210.44,37.76]
[1758693241789,89.89783543,210.47,210.45,13.59559401]
[1758693242087,89.89783543,210.47,210.46,37.76]
[1758693244299,89.89783543,210.47,210.46,51.35559401]
[1758693244505,89.89783543,210.47,210.46,57.61246446]
[1758693244969,89.68783543,210.47,210.46,18.55709073]
[1758693245287,89.68783543,210.47,210.46,82.10709073]
[1758693245589,89.68783543,210.47,210.46,83.61246446]
[1758693246390,89.68783543,210.47,210.46,44.34709073]
[1758693246710,89.68783543,210.47,210.46,82.10709073]
[1758693247482,89.68783543,210.47,210.46,51.35559401]
[1758693248592,89.68783543,210.47,210.46,56.10709073]
[1758693251386,89.68783543,210.47,210.46,57.61246446]
[1758693255984,89.68783543,210.47,210.46,56.10709073]
[1758693256190,89.68783543,210.47,210.46,56.08709073]
[1758693257291,89.68783543,210.47,210.46,18.34709073]
[1758693257494,89.68783543,210.47,210.46,56.08709073]
[1758693257689,89.68783543,210.47,210.46,57.59246446]
[1758693262799,89.68783543,210.47,210.46,19.85246446]
[1758693263209,89.68783543,210.47,210.46,57.59246446]
[1758693264714,89.68783543,210.47,210.46,56.08709073]
[1758693264893,89.68783543,210.47,210.46,57.59246446]
[1758693265516,89.68783543,210.47,210.46,19.85246446]
[1758693265724,89.68783543,210.47,210.46,57.57246446]
[1758693266518,89.68783543,210.47,210.46,56.06709073]
[1758693266723,89.68783543,210.47,210.46,57.57246446]
[1758693268207,89.68783543,210.47,210.46,56.06709073]
[1758693268408,89.68783543,210.47,210.46,57.57246446]
[1758693270435,63.00237637,210.47,210.46,57.57246446]
[1758693272401,63.00237637,210.47,210.46,19.85246446]
[1758693272729,63.00237637,210.47,210.46,57.57246446]
[1758693273607,63.00237637,210.47,210.46,19.85246446]
[1758693273802,63.00237637,210.47,210.46,57.57246446]
[1758693274002,31.54078718,210.47,210.46,57.57246446]
[1758693274208,0.7,210.54,210.5,39.59559401]
[1758693274410,0.7,210.54,210.53,41.10096774]
[1758693274615,0.7,210.54,210.53,78.82096774]
[1758693276300,0.7,210.54,210.53,83.57088461]
[1758693276506,133.9,210.63,210.54,13.59559401]
[1758693276709,0.7,210.62,210.56,15.10096774]
[1758693276909,0.7,210.61,210.58,15.10096774]
[1758693277104,0.1,210.69,210.6,15.10096774]
[1758693277340,0.1,210.69,210.62,15.10096774]
[1758693277506,1.28914051,210.69,210.64,13.59559401]
[1758693277836,1.28914051,210.69,210.63,39.20537373]
[1758693277837,0.7,210.68,210.65,36.98]
[1758693278129,0.1,210.69,210.66,37.7]
[1758693278130,0.7,210.67,210.66,37.7]
[1758693278333,0.7,210.67,210.53,41.07429344]
[1758693278334,4.74698566,210.66,210.58,39.59559401]
[1758693278533,0.7,210.65,210.6,13.59559401]
[1758693278715,0.7,210.64,210.59,15.10096774]
[1758693278914,0.7,210.63,210.6,37.7]
[1758693279102,0.7,210.62,210.61,37.7]
[1758693279302,0.7,210.62,210.58,13.59559401]
[1758693279502,0.7,210.61,210.54,13.59559401]
[1758693279723,0.7,210.6,210.56,13.59559401]
[1758693279922,0.7,210.59,210.57,37.7]
[1758693280102,0.7,210.58,210.57,37.7]
[1758693281142,0.7,210.58,210.56,13.59559401]
[1758693281327,0.7,210.57,210.56,13.59559401]
[1758693281531,0.7,210.57,210.56,51.29559401]
[1758693282236,0.7,210.57,210.56,37.7]
[1758693282435,0.7,210.57,210.53,13.59559401]
[1758693282748,0.7,210.56,210.54,37.7]
[1758693282942,1.18948572,210.65,210.54,37.7]
[1758693283145,0.7,210.55,210.54,37.7]
[1758693284345,0.7,210.55,210.51,13.59559401]
[1758693284557,0.7,210.54,210.43,14.29559401]
[1758693284857,0.7,210.53,210.45,13.59559401]
[1758693285063,0.7,210.52,210.45,39.59559401]
[1758693285254,0.7,210.51,210.45,39.59559401]
[1758693285541,0.7,210.54,210.47,13.59559401]
[1758693285747,0.7,210.53,210.49,13.59559401]
[1758693285917,0.7,210.53,210.5,37.7]
[1758693286123,0.7,210.52,210.5,37.7]
[1758693286330,0.7,210.55,210.51,13.59559401]
[1758693286644,0.7,210.54,210.52,37.7]
[1758693287445,0.7,210.53,210.52,37.7]
[1758693288230,0.7,210.53,210.49,14.29559401]
[1758693288432,0.7,210.53,210.5,51.27559401]
[1758693288845,0.7,210.53,210.51,37.68]
[1758693289448,0.7,210.53,210.52,37.68]
[1758693289849,0.7,210.53,210.49,0.7]
[1758693290158,0.7,210.53,210.5,51.27559401]
[1758693291939,5.44998427,210.53,210.5,51.27559401]
[1758693292255,0.7,210.53,210.51,37.68]
[1758693292826,0.66,210.52,210.44,13.59559401]
[1758693293021,0.66,210.51,210.44,13.59559401]
[1758693293249,0.66,210.5,210.45,37.68]
[1758693293467,0.66,210.49,210.45,37.68]
[1758693293757,0.66,210.48,210.45,37.68]
[1758693293956,5.41132562,210.47,210.45,37.68]
[1758693294160,0.66,210.46,210.45,37.68]
[1758693294330,4.7507279,210.5,210.45,37.68]
[1758693294527,5.4107279,210.5,210.45,37.68]
[1758693294742,0.66,210.49,210.46,37.68]
[1758693294945,0.66,210.48,210.46,37.68]
[1758693295366,5.4107279,210.5,210.46,37.68]
[1758693295574,0.66,210.49,210.46,37.68]
[1758693295882,0.66,210.51,210.46,37.68]
[1758693296078,0.66,210.5,210.46,37.68]
[1758693296380,0.66,210.49,210.46,37.68]
[1758693297160,0.66,210.49,210.47,37.68]
[1758693298052,5.41097978,210.49,210.47,37.68]
[1758693298252,5.41097978,210.49,210.44,0.65]
[1758693298253,0.66,210.48,210.39,0.65]
[1758693298454,0.66,210.48,210.4,51.27559401]
[1758693298655,0.66,210.47,210.4,51.27559401]
[1758693299053,0.66,210.46,210.4,51.27559401]
[1758693299779,4.75172249,210.45,210.4,51.27559401]
[1758693299980,5.41172249,210.45,210.4,51.92559401]
[1758693300275,5.41172249,210.45,210.41,0.65]
[1758693301162,2.35393266,210.42,210.38,0.65]
[1758693301372,0.66,210.44,210.39,37.68]
[1758693301550,0.66,210.43,210.39,38.33]
[1758693301977,0.66,210.46,210.4,0.65]
[1758693302551,2.35393266,210.41,210.4,0.65]
[1758693303066,2.35393266,210.43,210.4,5.40280493]
[1758693303874,5.41128513,210.47,210.41,14.24559401]
[1758693304177,2.35393266,210.45,210.42,37.68]
[1758693304573,2.35393266,210.45,210.42,38.33]
[1758693304871,2.35393266,210.47,210.43,0.65]
[1758693305185,3.01393266,210.47,210.43,0.65]
[1758693305378,2.35393266,210.45,210.43,0.65]
[1758693306993,0.66,210.47,210.43,0.65]
[1758693307176,5.41079001,210.5,210.43,4.75200654]
[1758693307362,2.35393266,210.47,210.44,0.65]
[1758693307565,2.35393266,210.47,210.45,37.68]
[1758693308176,2.35393266,210.49,210.46,0.65]
[1758693308352,2.35393266,210.49,210.47,0.65]
[1758693308556,2.35393266,210.49,210.48,37.68]
[1758693309862,5.41045167,210.51,210.48,37.68]
[1758693310062,2.35393266,210.49,210.48,37.68]
[1758693310964,26.0,210.52,210.48,37.68]
[1758693311163,2.35393266,210.49,210.48,37.68]
[1758693313002,2.35393266,210.51,210.48,38.33]
[1758693313206,2.35393266,210.51,210.49,0.65]
[1758693313565,2.35393266,210.51,210.48,42.43104522]
[1758693313765,2.35393266,210.51,210.48,38.38]
[1758693313966,3.04393266,210.51,210.48,37.68]
[1758693314192,0.69,210.51,210.48,37.68]
[1758693314376,2.35393266,210.5,210.48,37.68]
[1758693314569,2.35393266,210.5,210.47,13.59559401]
[1758693314789,2.35393266,210.5,210.48,37.66]
[1758693314984,3.04393266,210.5,210.48,37.66]
[1758693315174,0.69,210.5,210.48,37.66]
[1758693315376,2.35393266,210.49,210.48,37.66]
[1758693317099,4.74983693,210.54,210.48,42.41104522]